fUSD/lending_fUSD_20241101
["ID","MTS","AMOUNT","RATE_DAILY","PERIOD"]
[341153054,1730478636138,-10000.0,0.00037833,63]
[341153055,1730478636147,-363.21,0.00037853,2]
[341153056,1730478636156,-1164.3,0.00037997,120]
[341153057,1730478636165,-150.0,0.00038004,7]
[341153058,1730478636174,-250.0,0.00038124,2]
[341153059,1730478636185,-1056.06,0.00038158,2]
[341153060,1730478636195,-180.79,0.0003823,120]
[341153061,1730478636205,-1648.31,0.00038302,2]
[341153062,1730478636214,-200.0,0.00038511,2]
[341153063,1730478636223,-171.26,0.00038528,2]
[341153064,1730478636232,-517.42,0.00038542,2]
[341153065,1730478636242,-1463.07,0.00038656,2]
[341153066,1730478636251,-6551.93,0.00038715,2]
[341153067,1730478636260,-182.4,0.00038789,2]
[341153068,1730478636270,-497.93,0.00038892,60]
[341153069,1730478636279,-176.14,0.00039017,2]
[341153070,1730478636288,-224.59,0.00039269,2]
[341153071,1730478636298,-150.8,0.00039693,120]
[341153072,1730478636307,-163.31,0.00039911,2]
[341153073,1730478636317,-8502.5973929,0.0004,2]
[341153074,1730478636326,-180.0,0.0004,120]
[341153075,1730478636336,-153.0,0.0004002,2]
[341153076,1730478636345,-153.0,0.0004002,2]
[341153077,1730478636354,-153.0,0.0004002,2]
[341153078,1730478636363,-153.0,0.0004002,2]
[341153079,1730478636373,-153.0,0.0004002,2]
[341153080,1730478636382,-153.0,0.0004002,2]
[341153081,1730478636391,-153.0,0.0004002,2]
[341153082,1730478636400,-153.0,0.0004002,2]
[341153083,1730478636410,-163.31,0.0004011,2]
[341153084,1730478636419,-163.31,0.0004031,2]
[341153085,1730478636429,-1056.06,0.00040422,2]
[341153086,1730478636440,-175.31,0.00040475,120]
[341153087,1730478636450,-7289.0,0.00040483,2]
[341153088,1730478636459,-352.2727,0.00040795,2]
[341153089,1730478636469,-38426.6,0.00040895,2]
[341153090,1730478636479,-1157.7018,0.00040895,2]
[341153091,1730478636488,-1000.0,0.00040895,2]
[341153092,1730478636498,-1538.1728,0.00040895,2]
[341153093,1730478636507,-19747.18841934,0.00040994,2]
[341153094,1730478636516,-167.41740258,0.00040995,28]
[341153095,1730478636525,-86202.9885172,0.00040995,2]
[341153096,1730478636537,-13797.0114828,0.00040995,2]
[341153097,1730478636550,-261.57833553,0.00041,5]
[341153098,1730478636559,-500.0,0.00041095,3]
[341153099,1730478636568,-500.0,0.00041095,3]
[341153100,1730478636577,-500.0,0.00041095,3]
[341153101,1730478636587,-500.0,0.00041095,3]
[341153102,1730478636596,-500.0,0.00041095,3]
[341153103,1730478636605,-500.0,0.00041095,3]
[341153104,1730478636614,-500.0,0.00041095,3]
[341153105,1730478636624,-500.0,0.00041095,3]
[341153106,1730478636633,-500.0,0.00041095,3]
[341153107,1730478636643,-327.38082219,0.00041095,3]
[341153108,1730478636652,-500.0,0.00041095,3]
[341153109,1730478636661,-500.0,0.00041095,3]
[341153110,1730478636670,-500.0,0.00041095,3]
[341153111,1730478636680,-500.0,0.00041095,3]
[341153112,1730478636691,-500.0,0.00041095,3]
[341153113,1730478636700,-500.0,0.00041095,3]
[341153114,1730478636709,-500.0,0.00041095,3]
[341153115,1730478636718,-500.0,0.00041095,3]
[341153116,1730478636727,-500.0,0.00041095,3]
[341153117,1730478636737,-500.0,0.00041095,3]
[341153118,1730478636746,-500.0,0.00041095,3]
[341153119,1730478636755,-500.0,0.00041095,3]
[341153120,1730478636764,-500.0,0.00041095,3]
[341153121,1730478636773,-500.0,0.00041095,3]
[341153122,1730478636783,-500.0,0.00041095,3]
[341153123,1730478636793,-605.32599997,0.00041095,3]
[341153124,1730478636802,-500.0,0.00041095,3]
[341153125,1730478636811,-500.0,0.00041095,3]
[341153126,1730478636820,-500.0,0.00041095,3]
[341153127,1730478636830,-500.0,0.00041095,3]
[341153128,1730478636839,-500.0,0.00041095,3]
[341153129,1730478636849,-500.0,0.00041095,3]
[341153130,1730478636858,-500.0,0.00041095,3]
[341153131,1730478636867,-500.0,0.00041095,3]
[341153132,1730478636877,-500.0,0.00041095,3]
[341153133,1730478636886,-500.0,0.00041095,3]
[341153134,1730478636896,-500.0,0.00041095,3]
[341153135,1730478636905,-661.85,0.00041095,3]
[341153136,1730478636915,-500.0,0.00041095,3]
[341153137,1730478636924,-500.0,0.00041095,3]
[341153138,1730478636935,-535.83,0.00041095,3]
[341153139,1730478636944,-500.0,0.00041095,3]
[341153140,1730478636953,-649.16,0.00041095,3]
[341153141,1730478636963,-150.36,0.00041096,2]
[341153142,1730478636974,-157.0,0.00041096,2]
[341153143,1730478636983,-224.59,0.00041139,2]
[341153144,1730478636993,-153.0,0.00041255,31]
[341153145,1730478637002,-551.21940699,0.00041269,2]
[341153146,1730478637011,-500.0,0.00041369,3]
[341153147,1730478637020,-500.0,0.00041369,3]
[341153148,1730478637029,-500.0,0.00041369,3]
[341153149,1730478637038,-500.0,0.00041369,3]
[341153150,1730478637047,-500.0,0.00041369,3]
[341153151,1730478637057,-500.0,0.00041369,3]
[341153152,1730478637066,-500.0,0.00041369,3]
[341153153,1730478637075,-500.0,0.00041369,3]
[341153154,1730478637085,-462.3397731,0.00041369,3]
[341153155,1730478637094,-500.0,0.00041369,3]
[341153156,1730478637103,-500.0,0.00041369,3]
[341153157,1730478637112,-500.0,0.00041369,3]
[341153158,1730478637121,-500.0,0.00041369,3]
[341153159,1730478637130,-500.0,0.00041369,3]
[341153160,1730478637140,-500.0,0.00041369,3]
[341153161,1730478637149,-500.0,0.00041369,3]
[341153162,1730478637158,-500.0,0.00041369,3]
[341153163,1730478637168,-500.0,0.00041369,3]
[341153164,1730478637177,-500.0,0.00041369,3]
[341153165,1730478637189,-661.85,0.00041369,3]
[341153166,1730478637198,-500.0,0.00041369,3]
[341153167,1730478637208,-535.83,0.00041369,3]
[341153168,1730478637219,-500.0,0.00041369,3]
[341153169,1730478637228,-1345.0,0.000414,2]
[341153170,1730478637238,-482.651404,0.000414,2]
[341153171,1730478637248,-167.25,0.00041621,2]
[341153172,1730478637257,-169.37,0.00041621,2]
[341153173,1730478637267,-176.69,0.00041643,3]
[341153174,1730478637277,-500.0,0.00041643,3]
[341153175,1730478637286,-500.0,0.00041643,3]
[341153176,1730478637295,-500.0,0.00041643,3]
[341153177,1730478637304,-500.0,0.00041643,3]
[341153178,1730478637313,-500.0,0.00041643,3]
[341153179,1730478637323,-500.0,0.00041643,3]
[341153180,1730478637332,-500.0,0.00041643,3]
[341153181,1730478637341,-500.0,0.00041643,3]
[341153182,1730478637351,-583.65,0.00041643,3]
[341153183,1730478637361,-500.0,0.00041643,3]
[341153184,1730478637370,-500.0,0.00041643,3]
[341153185,1730478637379,-500.0,0.00041643,3]
[341153186,1730478637389,-500.0,0.00041643,3]
[341153187,1730478637398,-661.85,0.00041643,3]
[341153188,1730478637408,-500.0,0.00041643,3]
[341153189,1730478637417,-535.83,0.00041643,3]
[341153190,1730478637426,-500.0,0.00041643,3]
[341153191,1730478637437,-199.419,0.0004165,30]
[341153192,1730478637448,-150.0,0.00041766,2]
[341153193,1730478637458,-500.0,0.00041917,3]
[341153194,1730478637467,-500.0,0.00041917,3]
[341153195,1730478637476,-500.0,0.00041917,3]
[341153196,1730478637485,-500.0,0.00041917,3]
[341153197,1730478637494,-500.0,0.00041917,3]
[341153198,1730478637504,-500.0,0.00041917,3]
[341153199,1730478637513,-500.0,0.00041917,3]
[341153200,1730478637523,-500.0,0.00041917,3]
[341153201,1730478637532,-546.38,0.00041917,3]
[341153202,1730478637543,-604.01519823,0.00041917,3]
[341153203,1730478637555,-500.0,0.00041917,3]
[341153204,1730478637565,-661.85,0.00041917,3]
[341153205,1730478637574,-396.84,0.00041917,3]
[341153206,1730478637584,-535.83,0.00041917,3]
[341153207,1730478637594,-500.0,0.00041917,3]
[341153208,1730478637604,-1168.98947447,0.0004197,3]
[341153209,1730478637613,-500.0,0.00041986,3]
[341153210,1730478637624,-500.0,0.00041986,3]
[341153211,1730478637634,-500.0,0.00041986,3]
[341153212,1730478637644,-500.0,0.00041986,3]
[341153213,1730478637654,-500.0,0.00041986,3]
[341153214,1730478637663,-500.0,0.00041986,3]
[341153215,1730478637672,-500.0,0.00041986,3]
[341153216,1730478637681,-500.0,0.00041986,3]
[341153217,1730478637694,-500.0,0.00041986,3]
[341153218,1730478637704,-500.0,0.00041986,3]
[341153219,1730478637713,-500.0,0.00041986,3]
[341153220,1730478637723,-500.0,0.00041986,3]
[341153221,1730478637732,-10999.6074,0.00041987,2]
[341153222,1730478637742,-500.0,0.00042087,3]
[341153223,1730478637751,-500.0,0.00042087,3]
[341153224,1730478637760,-500.0,0.00042191,3]
[341153225,1730478637770,-500.0,0.00042191,3]
[341153226,1730478637779,-500.0,0.00042191,3]
[341153227,1730478637789,-500.0,0.00042191,3]
[341153228,1730478637799,-500.0,0.00042191,3]
[341153229,1730478637809,-478.80374635,0.00042191,3]
[341153230,1730478637818,-546.05,0.00042191,3]
[341153231,1730478637828,-230.08,0.00042191,3]
[341153232,1730478637837,-500.0,0.00042191,3]
[341153233,1730478637846,-661.85,0.00042191,3]
[341153234,1730478637855,-535.83,0.00042191,3]
[341153235,1730478637865,-500.0,0.00042191,3]
[341153236,1730478637874,-196.0,0.000422,2]
[341153237,1730478637884,-268.16,0.0004226,3]
[341153238,1730478637894,-500.0,0.0004226,3]
[341153239,1730478637903,-500.0,0.0004226,3]
[341153240,1730478637913,-500.0,0.0004226,3]
[341153241,1730478637926,-500.0,0.0004226,3]
[341153242,1730478637936,-500.0,0.0004226,3]
[341153243,1730478637945,-500.0,0.0004226,3]
[341153244,1730478637955,-199.484,0.0004232,2]
[341153245,1730478637964,-161.34,0.0004236,3]
[341153246,1730478637974,-500.0,0.0004236,3]
[341153247,1730478637984,-500.0,0.0004236,3]
[341153248,1730478637994,-500.0,0.0004236,3]
[341153249,1730478638004,-500.0,0.0004236,3]
[341153251,1730478638014,-500.0,0.0004236,3]
[341153253,1730478638023,-500.0,0.0004236,3]
[341153255,1730478638033,-500.0,0.0004236,3]
[341153256,1730478638042,-397.29300718,0.0004236,3]
[341153257,1730478638051,-500.0,0.0004236,3]
[341153258,1730478638060,-630.50877414,0.0004236,3]
[341153259,1730478638071,-500.0,0.0004236,3]
[341153260,1730478638081,-500.0,0.0004236,3]
[341153261,1730478638090,-500.0,0.0004236,3]
[341153262,1730478638100,-500.0,0.0004236,3]
[341153263,1730478638109,-500.0,0.0004236,3]
[341153264,1730478638119,-500.0,0.0004236,3]
[341153265,1730478638128,-500.0,0.0004236,3]
[341153266,1730478638138,-500.0,0.0004236,3]
[341153267,1730478638147,-500.0,0.0004236,3]
[341153268,1730478638156,-1000.0,0.00042431,2]
[341153269,1730478638166,-500.0,0.00042465,3]
[341153270,1730478638175,-500.0,0.00042465,3]
[341153271,1730478638187,-500.0,0.00042465,3]
[341153272,1730478638200,-502.18898822,0.00042465,3]
[341153273,1730478638210,-500.0,0.00042465,3]
[341153274,1730478638220,-500.0,0.00042465,3]
[341153275,1730478638229,-661.85,0.00042465,3]
[341153276,1730478638238,-535.83,0.00042465,3]
[341153277,1730478638248,-236.27216352,0.00042465,3]
[341153278,1730478638257,-406.514,0.00042484,2]
[341153279,1730478638267,-1275.176,0.00042484,2]
[341153280,1730478638276,-896.83,0.00042484,2]
[341153281,1730478638285,-1072.348,0.00042484,2]
[341153282,1730478638295,-150.0,0.00042484,2]
[341153283,1730478638304,-451.0,0.00042484,2]
[341153284,1730478638314,-500.0,0.00042534,3]
[341153285,1730478638323,-500.0,0.00042534,3]
[341153286,1730478638333,-500.0,0.00042534,3]
[341153287,1730478638343,-500.0,0.00042534,3]
[341153288,1730478638353,-500.0,0.00042534,3]
[341153289,1730478638362,-500.0,0.00042534,3]
[341153290,1730478638372,-199.46,0.0004255,14]
[341153291,1730478638382,-551.21940694,0.00042557,2]
[341153292,1730478638392,-500.0,0.00042634,3]
[341153293,1730478638402,-500.0,0.00042634,3]
[341153294,1730478638411,-257.14074944,0.00042634,3]
[341153295,1730478638421,-500.0,0.00042634,3]
[341153296,1730478638431,-500.0,0.00042634,3]
[341153297,1730478638444,-500.0,0.00042634,3]
[341153298,1730478638454,-500.0,0.00042634,3]
[341153299,1730478638464,-500.0,0.00042634,3]
[341153300,1730478638474,-500.0,0.00042634,3]
[341153301,1730478638483,-616.32,0.00042634,3]
[341153302,1730478638492,-1056.06,0.00042686,2]
[341153303,1730478638502,-500.0,0.00042739,3]
[341153304,1730478638511,-500.0,0.00042739,3]
[341153305,1730478638520,-500.0,0.00042739,3]
[341153306,1730478638530,-500.0,0.00042739,3]
[341153307,1730478638540,-500.0,0.00042739,3]
[341153308,1730478638553,-661.85,0.00042739,3]
[341153309,1730478638562,-535.83,0.00042739,3]
[341153310,1730478638571,-506.26899999,0.000428,60]
[341153311,1730478638581,-500.0,0.00042808,3]
[341153312,1730478638593,-500.0,0.00042808,3]
[341153313,1730478638603,-500.0,0.00042808,3]
[341153314,1730478638612,-500.0,0.00042808,3]
[341153315,1730478638622,-500.0,0.00042808,3]
[341153316,1730478638632,-500.0,0.00042808,3]
[341153317,1730478638642,-500.0,0.00042908,3]
[341153318,1730478638652,-500.0,0.00042908,3]
[341153319,1730478638662,-500.0,0.00042908,3]
[341153320,1730478638671,-552.96,0.00042908,3]
[341153321,1730478638681,-500.0,0.00042908,3]
[341153322,1730478638699,-500.0,0.00042908,3]
[341153323,1730478638709,-500.0,0.00042908,3]
[341153324,1730478638853,-1000.0,0.0004295,45]
[341153325,1730478638863,-1000.0,0.0004297,3]
[341153326,1730478638872,-250.0,0.00043,2]
[341153327,1730478638882,-224.59,0.00043009,2]
[341153328,1730478638891,-500.0,0.00043013,3]
[341153329,1730478638900,-500.0,0.00043013,3]
[341153330,1730478638910,-500.0,0.00043013,3]
[341153331,1730478638919,-500.0,0.00043013,3]
[341153332,1730478638929,-500.0,0.00043013,3]
[341153333,1730478638941,-661.85,0.00043013,3]
[341153334,1730478638951,-535.83,0.00043013,3]
[341153335,1730478638960,-500.0,0.00043082,3]
[341153336,1730478638970,-500.0,0.00043082,3]
[341153337,1730478638980,-500.0,0.00043082,3]
[341153338,1730478638989,-500.0,0.00043082,3]
[341153339,1730478638999,-500.0,0.00043082,3]
[341153340,1730478639009,-299.01130692,0.00043082,3]
[341153341,1730478639018,-500.0,0.00043182,3]
[341153342,1730478639028,-500.0,0.00043182,3]
[341153343,1730478639038,-631.10741296,0.00043182,3]
[341153344,1730478639048,-609.39387662,0.00043182,3]
[341153345,1730478639057,-580.8718097,0.00043182,3]
[341153346,1730478639067,-476.38535579,0.00043182,3]
[341153347,1730478639077,-199.467,0.0004322,120]
[341153348,1730478639086,-297.43033882,0.00043286,3]
[341153349,1730478639096,-500.0,0.00043287,3]
[341153350,1730478639104,-500.0,0.00043287,3]
[341153351,1730478639113,-500.0,0.00043287,3]
[341153352,1730478639122,-500.0,0.00043287,3]
[341153353,1730478639131,-500.0,0.00043287,3]
[341153354,1730478639140,-661.85,0.00043287,3]
[341153355,1730478639149,-535.83,0.00043287,3]
[341153356,1730478639159,-500.0,0.00043356,3]
[341153357,1730478639168,-500.0,0.00043356,3]
[341153358,1730478639178,-500.0,0.00043356,3]
[341153359,1730478639190,-500.0,0.00043356,3]
[341153360,1730478639199,-500.0,0.00043356,3]
[341153361,1730478639208,-168.87,0.00043394,2]
[341153362,1730478639218,-199.479,0.0004345,7]
[341153363,1730478639227,-281.46414362,0.00043456,3]
[341153364,1730478639237,-500.0,0.00043456,3]
[341153365,1730478639246,-500.0,0.00043456,3]
[341153366,1730478639257,-500.0,0.00043456,3]
[341153367,1730478639266,-500.0,0.00043456,3]
[341153368,1730478639276,-500.0,0.00043456,3]
[341153369,1730478639286,-500.0,0.00043456,3]
[341153370,1730478639296,-500.0,0.00043456,3]
[341153371,1730478639305,-173.41028922,0.00043456,3]
[341153372,1730478639315,-500.0,0.00043456,3]
[341153373,1730478639324,-500.0,0.00043456,3]
[341153374,1730478639334,-500.0,0.00043456,3]
[341153375,1730478639344,-271.87643493,0.00043456,3]
[341153376,1730478639354,-500.0,0.00043456,3]
[341153377,1730478639363,-500.0,0.00043456,3]
[341153378,1730478639373,-500.0,0.00043456,3]
[341153379,1730478639383,-500.0,0.00043456,3]
[341153380,1730478639393,-500.0,0.00043456,3]
[341153381,1730478639402,-500.0,0.0004346,3]
[341153382,1730478639412,-1000.0,0.000435,45]
[341153383,1730478639422,-500.0,0.00043561,3]
[341153384,1730478639432,-500.0,0.00043561,3]
[341153385,1730478639442,-500.0,0.00043561,3]
[341153386,1730478639451,-500.0,0.00043561,3]
[341153387,1730478639461,-500.0,0.00043561,3]
[341153388,1730478639471,-661.85,0.00043561,3]
[341153389,1730478639480,-535.83,0.00043561,3]
[341153390,1730478639490,-500.0,0.0004363,3]
[341153391,1730478639499,-500.0,0.0004363,3]
[341153392,1730478639509,-500.0,0.0004363,3]
[341153393,1730478639519,-500.0,0.0004363,3]
[341153394,1730478639528,-500.0,0.0004363,3]
[341153395,1730478639538,-151.1,0.00043667,2]
[341153396,1730478639549,-215.5192734,0.00043667,2]
[341153397,1730478639559,-10000.0,0.00043676,7]
[341153398,1730478639569,-500.0,0.00043676,3]
[341153399,1730478639578,-27851.91762482,0.00043677,7]
[341153400,1730478639639,-205.01,0.00040885,10]
[341153401,1730478639649,-155068.21641018,0.00043677,7]
[341153402,1730478639659,-3468.54416482,0.00043677,7]
[341153403,1730478639668,-622.736938,0.000437,45]
[341153404,1730478639678,-500.0,0.0004373,3]
[341153405,1730478639690,-500.0,0.0004373,3]
[341153406,1730478639700,-500.0,0.0004373,3]
[341153407,1730478639710,-500.0,0.0004373,3]
[341153408,1730478639720,-500.0,0.0004373,3]
[341153409,1730478639729,-500.0,0.0004373,3]
[341153410,1730478639739,-500.0,0.0004373,3]
[341153411,1730478639748,-500.0,0.0004373,3]
[341153412,1730478639757,-500.0,0.0004373,3]
[341153413,1730478639766,-500.0,0.0004373,3]
[341153414,1730478639775,-500.0,0.00043734,3]
[341153415,1730478639784,-500.0,0.00043833,3]
[341153416,1730478639793,-500.0,0.00043835,3]
[341153417,1730478639803,-500.0,0.00043835,3]
[341153418,1730478639812,-500.0,0.00043835,3]
[341153419,1730478639822,-500.0,0.00043835,3]
[341153420,1730478639831,-500.0,0.00043835,3]
[341153421,1730478639840,-661.85,0.00043835,3]
[341153422,1730478639851,-535.83,0.00043835,3]
[341153423,1730478639861,-551.21940694,0.00043845,2]
[341153424,1730478639871,-2362.0,0.00043879,30]
[341153425,1730478639881,-156.96459604,0.00043904,3]
[341153426,1730478639891,-534.25965075,0.00043904,3]
[341153427,1730478639901,-500.0,0.00043904,3]
[341153428,1730478639910,-500.0,0.00043904,3]
[341153429,1730478639920,-500.0,0.00043904,3]
[341153430,1730478639929,-245.88,0.00044,30]
[341153431,1730478639941,-500.0,0.00044004,3]
[341153432,1730478639950,-500.0,0.00044004,3]
[341153433,1730478639959,-358.19,0.00044004,3]
[341153434,1730478639969,-500.0,0.00044004,3]
[341153436,1730478639979,-500.0,0.00044004,3]
[341153437,1730478639988,-500.0,0.00044004,3]
[341153438,1730478639998,-293.05621201,0.00044004,3]
[341153439,1730478640009,-500.0,0.00044004,3]
[341153440,1730478640018,-500.0,0.00044004,3]
[341153441,1730478640028,-500.0,0.00044109,3]
[341153442,1730478640038,-500.0,0.00044109,3]
[341153443,1730478640048,-500.0,0.00044109,3]
[341153444,1730478640057,-500.0,0.00044109,3]
[341153445,1730478640067,-500.0,0.00044109,3]
[341153446,1730478640080,-661.85,0.00044109,3]
[341153448,1730478640090,-535.83,0.00044109,3]
[341153449,1730478640100,-500.0,0.00044178,3]
[341153450,1730478640109,-500.0,0.00044178,3]
[341153451,1730478640119,-500.0,0.00044178,3]
[341153452,1730478640128,-500.0,0.00044278,3]
[341153453,1730478640138,-338.99057206,0.00044278,3]
[341153454,1730478640148,-500.0,0.00044278,3]
[341153456,1730478640158,-500.0,0.00044278,3]
[341153457,1730478640167,-500.0,0.00044278,3]
[341153458,1730478640177,-500.0,0.00044278,3]
[341153459,1730478640188,-500.0,0.00044278,3]
[341153460,1730478640198,-1353.32,0.0004433,2]
[341153461,1730478640207,-454.00870263,0.0004433,2]
[341153462,1730478640217,-199.44,0.0004435,14]
[341153463,1730478640227,-500.0,0.00044383,3]
[341153464,1730478640237,-500.0,0.00044383,3]
[341153465,1730478640247,-500.0,0.00044383,3]
[341153466,1730478640256,-500.0,0.00044383,3]
[341153467,1730478640266,-500.0,0.00044383,3]
[341153468,1730478640276,-661.85,0.00044383,3]
[341153469,1730478640286,-535.83,0.00044383,3]
[341153470,1730478640296,-1550.22437742,0.00044384,4]
[341153471,1730478640305,-14171.06292831,0.00044392,4]
[341153472,1730478640315,-63886.71290884,0.00044397,4]
[341153473,1730478640324,-14171.06292831,0.00044407,4]
[341153474,1730478640334,-14171.06292831,0.00044407,4]
[341153475,1730478640344,-63886.71290884,0.00044436,4]
[341153476,1730478640356,-1550.22437742,0.00044449,4]
[341153477,1730478640368,-500.0,0.00044452,3]
[341153478,1730478640380,-500.0,0.00044452,3]
[341153479,1730478640393,-500.0,0.00044452,3]
[341153480,1730478640405,-500.0,0.00044458,120]
[341153481,1730478640418,-1550.22437742,0.00044464,4]
[341153482,1730478640428,-14171.06292831,0.00044476,4]
[341153483,1730478640444,-150.0,0.000445,2]
[341153484,1730478640455,-63886.71290884,0.00044509,4]
[341153485,1730478640468,-150.0,0.00044517,2]
[341153486,1730478640480,-150.0,0.00044519,2]
[341153487,1730478640492,-150.0,0.00044525,2]
[341153488,1730478640503,-1550.22437742,0.00044531,4]
[341153489,1730478640515,-150.0,0.00044533,2]
[341153490,1730478640527,-150.0,0.00044544,2]
[341153491,1730478640538,-500.0,0.00044552,3]
[341153492,1730478640553,-500.0,0.00044552,3]
[341153493,1730478640564,-531.99738035,0.00044552,3]
[341153494,1730478640575,-500.0,0.00044552,3]
[341153495,1730478640587,-553.23332604,0.00044552,3]
[341153496,1730478640600,-500.0,0.00044552,3]
[341153498,1730478640611,-2000.0,0.00044552,2]
[341153500,1730478640624,-63886.71290884,0.00044555,4]
[341153503,1730478640636,-150.0,0.00044559,2]
[341153505,1730478640647,-169.37,0.00044565,2]
[341153507,1730478640658,-521.0,0.00044566,7]
[341153509,1730478640670,-1000.0,0.0004457,3]
[341153511,1730478640681,-14171.06292831,0.0004457,4]
[341153513,1730478640700,-756.50464643,0.0004457,3]
[341153515,1730478640711,-150.0,0.00044578,2]
[341153518,1730478640722,-63886.71290884,0.00044581,4]
[341153520,1730478640733,-1550.22437742,0.00044586,4]
[341153522,1730478640744,-150.0,0.00044593,2]
[341153524,1730478640755,-150.0,0.00044599,2]
[341153526,1730478640766,-150.0,0.00044604,2]
[341153528,1730478640778,-150.0,0.00044621,2]
[341153530,1730478640788,-150.0,0.00044629,2]
[341153533,1730478640799,-150.0,0.0004463,7]
[341153535,1730478640809,-150.0,0.00044632,2]
[341153537,1730478640819,-150.0,0.00044656,2]
[341153539,1730478640829,-150.0,0.00044657,2]
[341153541,1730478640839,-500.0,0.00044657,3]
[341153543,1730478640851,-255.7670628,0.00044657,3]
[341153545,1730478640862,-500.0,0.00044657,3]
[341153547,1730478640872,-500.0,0.00044657,3]
[341153549,1730478640883,-500.0,0.00044657,3]
[341153551,1730478640895,-661.85,0.00044657,3]
[341153553,1730478640906,-535.83,0.00044657,3]
[341153556,1730478640918,-150.0,0.00044658,2]
[341153558,1730478640929,-1000.0,0.0004467,3]
[341153560,1730478640944,-500.0,0.0004467,3]
[341153562,1730478640954,-150.0,0.00044679,2]
[341153564,1730478640965,-150.0,0.00044689,2]
[341153566,1730478640978,-150.0,0.00044693,7]
[341153569,1730478640990,-150.0,0.00044695,2]
[341153570,1730478641002,-150.0,0.00044697,2]
[341153572,1730478641013,-354.289594,0.000447,60]
[341153574,1730478641025,-500.0,0.000447,45]
[341153576,1730478641035,-1000.0,0.000447,20]
[341153578,1730478641044,-150.0,0.00044705,2]
[341153580,1730478641054,-150.0,0.00044708,2]
[341153582,1730478641063,-2044.7633,0.00044716,2]
[341153584,1730478641073,-150.0,0.00044719,2]
[341153586,1730478641084,-1500.0,0.0004472,7]
[341153588,1730478641094,-150.0,0.00044725,2]
[341153590,1730478641105,-500.0,0.00044726,3]
[341153592,1730478641117,-198.18447378,0.00044726,3]
[341153594,1730478641129,-500.0,0.00044726,3]
[341153597,1730478641141,-150.0,0.00044736,2]
[341153599,1730478641152,-150.0,0.00044742,2]
[341153601,1730478641163,-150.0,0.00044745,2]
[341153603,1730478641174,-150.0,0.00044756,2]
[341153605,1730478641184,-20260.5760556,0.00044759,2]
[341153607,1730478641199,-150.0,0.0004476,2]
[341153609,1730478641210,-150.0,0.00044763,2]
[341153611,1730478641220,-150.0,0.00044766,2]
[341153613,1730478641230,-500.0,0.00044766,3]
[341153615,1730478641243,-23103.39393352,0.00044767,2]
[341153618,1730478641254,-48246.98898767,0.00044767,2]
[341153620,1730478641264,-150.0,0.00044767,2]
[341153622,1730478641274,-150.0,0.00044767,30]
[341153624,1730478641284,-169.546647,0.00044767,30]
[341153625,1730478641294,-6538.2968292,0.00044769,2]
[341153628,1730478641304,-3682.3634931,0.00044769,2]